[Event "Centenario Panaderia Pulido 2023"]
[Site "San Mateo Gran Canaria"]
[Date "2023.12.05"]
[Round "2.15"]
[White "Ramirez Maillo, Juan Adonay"]
[Black "Rivero Pena, Himar"]
[Result "1-0"]
[ECO "B06"]
[WhiteElo "1857"]
[BlackElo "1594"]
[Annotator "NA COMBH"]
[PlyCount "93"]
[EventDate "2023.12.04"]
[EventType "swiss"]
[EventCountry "ESP"]
[SourceTitle "playchess.com"]
[Source "ChessBase"]
[SourceQuality "1"]
[TimeControl "5400+30"]

1. d4 {[%emt 0:00:56]} g6 {[%emt 0:00:55]} 2. e4 {[%emt 0:02:23]} Bg7 {[%emt 0:00:34]} 3. Be3 {[%emt 0:00:08]} d6 {[%emt 0:00:04]} 4. Nc3 {[%emt 0:00:11]} c6 {[%emt 1:30:57]} 5. a4 {[%emt 1:29:22]} e6 {[%emt 0:00:00]} 6. Qd2 {[%emt 0:00:00]} Nd7 {[%emt 0:01:00]} 7. h4 {[%emt 0:01:00]} h5 {[%emt 0:00:30]} 8. f3 {[%emt 0:00:30]} Nh6 {[%emt 0:00:00]} 9. O-O-O {[%emt 0:00:00]} a6 {[%emt 0:01:00]} 10. d5 {[%emt 0:01:00]} cxd5 {[%emt 0:00:00]} 11. exd5 {[%emt 0:00:00]} e5 {[%emt 0:00:00]} 12. Ne4 {[%emt 0:01:00]} Qe7 {[%emt 0:00:00]} 13. Qb4 Nf5 {[%emt 0:02:00]} 14. Bg5 {[%emt 0:01:00]} f6 {[%emt 0:00:00]} 15. Bd2 Nc5 {[%emt 0:01:00]} 16. Nxc5 {[%emt 0:00:00]} dxc5 {[%emt 0:00:00]} 17. Qe4 Qd6 {[%emt 0:01:00]} 18. f4 {[%emt 0:02:00]} Kf7 {[%emt 0:00:00]} 19. fxe5 {[%emt 0:00:00]} fxe5 {[%emt 0:00:00]} 20. Nh3 {[%emt 0:00:00]} Bf6 {[%emt 0:00:00]} 21. Bd3 {[%emt 0:00:00]} b5 {[%emt 0:00:00]} 22. Ng5+ {[%emt 0:00:00]} Kg7 {[%emt 0:00:00]} 23. g4 {[%emt 0:00:00]} Bxg5 {[%emt 0:00:00]} 24. Bxg5 {[%emt 0:00:04]} Ng3 {[%emt 0:00:00]} 25. Qf3 {[%emt 0:02:44]} Nxh1 {[%emt 0:00:00]} 26. gxh5 {[%emt 0:00:10]} gxh5 {[%emt 0:00:00]} 27. Rg1 {[%emt 0:00:42]} Bg4 {[%emt 0:00:00]} 28. Qxh1 {[%emt 0:00:31]} c4 {[%emt 0:00:00]} 29. Be2 {[%emt 0:00:37]} Qd7 {[%emt 0:00:00]} 30. Qe4 {[%emt 0:00:15]} Qf5 {[%emt 0:06:30]} 31. Rxg4 {[%emt 0:00:29]} Qxe4 {[%emt 0:00:00]} 32. Rxe4 {[%emt 0:00:01]} Rae8 {[%emt 0:00:00]} 33. axb5 {[%emt 0:00:19]} axb5 {[%emt 0:00:00]} 34. d6 {[%emt 0:00:20]} Kg6 {[%emt 0:02:00]} 35. Re3 {[%emt 0:01:10]} e4 {[%emt 0:00:00]} 36. Kd2 {[%emt 0:00:39]} Kf5 {[%emt 0:00:00]} 37. d7 {[%emt 0:00:49]} Rd8 {[%emt 0:00:00]} 38. Bxd8 {[%emt 0:00:17]} Rxd8 {[%emt 0:00:00]} 39. Bxh5 {[%emt 0:00:34]} Rxd7+ {[%emt 0:00:00]} 40. Ke2 {[%emt 0:01:19]} Kf4 {[%emt 0:00:00]} 41. Be8 {[%emt 0:00:00]} Rh7 {[%emt 0:00:00]} 42. h5 {[%emt 0:00:00]} Rh8 {[%emt 0:02:10]} 43. Bg6 {[%emt 0:00:00]} Kg5 {[%emt 0:00:39]} 44. Rxe4 {[%emt 0:00:00]} Rb8 {[%emt 0:00:05]} 45. Kd2 {[%emt 0:00:13]} Kh6 {[%emt 0:01:14]} 46. Kc3 {[%emt 0:00:14]} Rf8 {[%emt 0:00:01]} 47. Kb4 {[%emt 0:00:24]} 1-0

[Event "Centenario Panaderia Pulido 2023"]
[Site "San Mateo Gran Canaria"]
[Date "2023.12.05"]
[Round "3.1"]
[White "Oudeh Mishmesh, Omar"]
[Black "Korneev, Oleg"]
[Result "0-1"]
[ECO "C82"]
[WhiteElo "2247"]
[BlackElo "2470"]
[Annotator "RC"]
[PlyCount "100"]
[EventDate "2023.12.04"]
[EventType "swiss"]
[EventCountry "ESP"]
[SourceTitle "playchess.com"]
[Source "ChessBase"]
[SourceQuality "1"]
[TimeControl "5400+30"]

1. e4 {[%emt 0:00:06]} e5 {[%emt 0:00:04]} 2. Nf3 {[%emt 0:00:24]} Nc6 {[%emt 0:01:58]} 3. Bb5 {[%emt 0:00:32]} a6 {[%emt 0:00:50]} 4. Ba4 {[%emt 0:00:22]} Nf6 {[%emt 0:00:03]} 5. O-O {[%emt 0:01:08]} Nxe4 {[%emt 0:00:04]} 6. d4 {[%emt 0:01:30]} b5 {[%emt 0:00:03]} 7. Bb3 {[%emt 0:00:04]} d5 {[%emt 0:00:06]} 8. dxe5 {[%emt 0:00:19]} Be6 {[%emt 0:00:02]} 9. c3 {[%emt 0:01:19]} Bc5 {[%emt 0:00:19]} 10. Qd3 {[%emt 0:03:09]} Ne7 {[%emt 0:22:22]} 11. Nd4 {[%emt 0:11:19]} Bxd4 {[%emt 0:00:48]} 12. cxd4 {[%emt 0:00:50]} c5 {[%emt 0:00:07]} 13. dxc5 {[%emt 0:05:06]} Nxc5 {[%emt 0:00:18]} 14. Qf3 {[%emt 0:05:51]} d4 {[%emt 0:08:56]} 15. Nd2 {[%emt 0:14:08]} O-O {[%emt 0:00:42]} 16. Re1 {[%emt 0:14:24]} Qa5 {[%emt 0:17:31]} 17. Rd1 {[%emt 0:06:22]} Rad8 {[%emt 0:02:48]} 18. Bxe6 {[%emt 0:10:35]} fxe6 {[%emt 0:00:26]} 19. Qe2 {[%emt 0:01:44]} d3 {[%emt 0:07:41]} 20. Qg4 {[%emt 0:03:38]} Nf5 {[%emt 0:10:28]} 21. Nf3 {[%emt 0:02:39]} Qa4 {[%emt 0:10:47]} 22. Qxa4 {[%emt 0:02:19]} Nxa4 {[%emt 0:00:02]} 23. Bg5 {[%emt 0:06:27]} Rd5 {[%emt 0:03:06]} 24. Rd2 {[%emt 0:01:03]} Rc8 {[%emt 0:05:14]} 25. Rad1 {[%emt 0:03:37]} h6 {[%emt 0:00:23]} 26. g4 {[%emt 0:02:39]} Nd4 {[%emt 0:01:31]} 27. Nxd4 {[%emt 0:00:25]} Rxd4 {[%emt 0:00:03]} 28. Be3 {[%emt 0:00:24]} Rxg4+ {[%emt 0:00:02]} 29. Kf1 {[%emt 0:00:06]} Re4 {[%emt 0:00:28]} 30. Rxd3 {[%emt 0:01:44]} Nxb2 {[%emt 0:01:44]} 31. Rd8+ {[%emt 0:00:04]} Rxd8 {[%emt 0:00:06]} 32. Rxd8+ {[%emt 0:00:05]} Kf7 {[%emt 0:06:05]} 33. Rd7+ {[%emt 0:00:33]} Kf8 {[%emt 0:00:40]} 34. Rd6 {[%emt 0:01:32]} Nc4 {[%emt 0:00:17]} 35. Rxa6 {[%emt 0:00:25]} Rxe5 {[%emt 0:01:20]} 36. Ra8+ {[%emt 0:00:54]} Kf7 {[%emt 0:00:04]} 37. Ra7+ {[%emt 0:00:35]} Kg8 {[%emt 0:00:58]} 38. Rb7 {[%emt 0:00:32]} Nxe3+ {[%emt 0:00:20]} 39. fxe3 {[%emt 0:00:04]} Rxe3 {[%emt 0:00:36]} 40. Rxb5 {[%emt 0:00:11]} Ra3 {[%emt 0:00:06]} 41. Rb2 {[%emt 0:00:30]} Kf7 {[%emt 0:00:35]} 42. Kf2 {[%emt 0:01:02]} e5 {[%emt 0:00:12]} 43. Kg2 {[%emt 0:00:34]} Kf6 {[%emt 0:00:38]} 44. Kf2 {[%emt 0:00:35]} Kf5 {[%emt 0:00:17]} 45. Kg2 {[%emt 0:00:33]} g5 {[%emt 0:00:07]} 46. Kf2 {[%emt 0:00:32]} g4 {[%emt 0:00:35]} 47. Kg2 {[%emt 0:00:26]} h5 {[%emt 0:00:37]} 48. Kf2 {[%emt 0:00:21]} h4 {[%emt 0:00:18]} 49. Kg2 {[%emt 0:00:39]} e4 {[%emt 0:00:43]} 50. Kf2 {[%emt 0:00:30]} Ke5 0-1

[Event "Centenario Panaderia Pulido 2023"]
[Site "San Mateo Gran Canaria"]
[Date "2023.12.05"]
[Round "3.2"]
[White "Estremera Panos, Sergio"]
[Black "Strikovic, Aleksa"]
[Result "0-1"]
[ECO "A90"]
[WhiteElo "2232"]
[BlackElo "2455"]
[Annotator "RC"]
[PlyCount "52"]
[EventDate "2023.12.04"]
[EventType "swiss"]
[EventCountry "ESP"]
[SourceTitle "playchess.com"]
[Source "ChessBase"]
[SourceQuality "1"]
[TimeControl "5400+30"]

1. d4 {[%emt 0:00:05]} f5 {[%emt 0:02:12]} 2. g3 {[%emt 0:00:37]} Nf6 {[%emt 0:00:30]} 3. Bg2 {[%emt 0:00:09]} e6 {[%emt 0:01:46]} 4. Nf3 {[%emt 0:01:13]} d5 {[%emt 0:01:43]} 5. c4 {[%emt 0:02:20]} c6 {[%emt 0:00:17]} 6. O-O {[%emt 0:00:31]} Bd6 {[%emt 0:00:11]} 7. Nc3 {[%emt 0:01:02]} O-O {[%emt 0:00:42]} 8. Qc2 {[%emt 0:01:02]} Ne4 {[%emt 0:05:12]} 9. Rb1 {[%emt 0:02:34]} a5 {[%emt 0:02:25]} 10. a3 {[%emt 0:04:41]} Bd7 {[%emt 0:22:41]} 11. b4 {[%emt 0:02:34]} axb4 {[%emt 0:00:11]} 12. axb4 {[%emt 0:00:08]} Be8 {[%emt 0:00:16]} 13. Nxe4 {[%emt 0:33:45]} fxe4 {[%emt 0:03:26]} 14. Ng5 {[%emt 0:00:14]} Qe7 {[%emt 0:05:36]} 15. c5 {[%emt 0:15:42]} Bc7 {[%emt 0:00:17]} 16. f4 {[%emt 0:00:28]} h6 {[%emt 0:06:59]} 17. Nh3 {[%emt 0:00:06]} b5 {[%emt 0:00:06]} 18. Nf2 {[%emt 0:08:25]} Bh5 {[%emt 0:04:49]} 19. Nd1 {[%emt 0:08:59]} Nd7 {[%emt 0:03:20]} 20. Nc3 {[%emt 0:03:14]} Bg6 {[%emt 0:04:04]} 21. Bd2 {[%emt 0:03:35]} Bf5 {[%emt 0:00:50]} 22. e3 {[%emt 0:00:14]} g5 {[%emt 0:00:13]} 23. Ra1 {[%emt 0:03:02]} h5 {[%emt 0:06:43]} 24. Rxa8 {[%emt 0:03:11]} Rc8 {[%emt 0:28:01]} 25. Rb8 Rxb8 {[%emt 0:00:00]} 26. Qb2 {[%emt 0:02:06]} Ra8 {[%emt 0:00:00]} 0-1

[Event "Centenario Panaderia Pulido 2023"]
[Site "San Mateo Gran Canaria"]
[Date "2023.12.05"]
[Round "3.3"]
[White "Larino Nieto, David"]
[Black "Hernandez Leon, Alberto"]
[Result "1-0"]
[ECO "A16"]
[WhiteElo "2366"]
[BlackElo "2209"]
[Annotator "RC"]
[PlyCount "124"]
[EventDate "2023.12.04"]
[EventType "swiss"]
[EventCountry "ESP"]
[SourceTitle "playchess.com"]
[Source "ChessBase"]
[SourceQuality "1"]
[TimeControl "5400+30"]

1. e3 {[%emt 0:00:09]} Nf6 {[%emt 0:01:06]} 2. c4 {[%emt 0:01:05]} g6 {[%emt 0:00:48]} 3. Nc3 {[%emt 0:00:18]} Bg7 {[%emt 0:00:13]} 4. g4 {[%emt 0:00:05]} h6 {[%emt 0:05:29]} 5. Bg2 {[%emt 0:01:45]} d6 {[%emt 0:01:22]} 6. h3 {[%emt 0:00:26]} O-O {[%emt 0:01:56]} 7. b3 {[%emt 0:01:10]} c6 {[%emt 0:03:57]} 8. Nge2 {[%emt 0:02:43]} e5 {[%emt 0:07:54]} 9. d4 {[%emt 0:01:39]} Qa5 {[%emt 0:04:42]} 10. Bd2 {[%emt 0:06:34]} Qc7 {[%emt 0:03:04]} 11. d5 {[%emt 0:02:00]} Na6 {[%emt 0:07:21]} 12. e4 {[%emt 0:01:49]} Qe7 {[%emt 0:07:17]} 13. Ng3 {[%emt 0:00:32]} Bd7 {[%emt 0:03:23]} 14. g5 {[%emt 0:02:28]} Nh7 {[%emt 0:48:58]} 15. gxh6 {[%emt 0:01:28]} Bf6 {[%emt 0:00:00]} 16. O-O {[%emt 1:14:19]} c5 {[%emt 0:00:00]} 17. Kh2 {[%emt 0:00:30]} Bg5 {[%emt 0:01:30]} 18. Nce2 {[%emt 0:00:30]} Bxd2 {[%emt 0:00:00]} 19. Qxd2 {[%emt 0:00:30]} Qh4 {[%emt 0:01:00]} 20. f4 {[%emt 0:00:00]} Qxh6 {[%emt 0:00:30]} 21. Rad1 {[%emt 0:00:00]} exf4 {[%emt 0:00:00]} 22. Qxf4 {[%emt 0:01:30]} Qxf4 {[%emt 0:01:00]} 23. Rxf4 {[%emt 0:00:30]} Rae8 {[%emt 0:00:30]} 24. Nc1 {[%emt 0:00:30]} f6 {[%emt 0:00:00]} 25. Nd3 {[%emt 0:00:00]} Nb4 {[%emt 0:01:00]} 26. Nxb4 {[%emt 0:00:00]} cxb4 {[%emt 0:00:30]} 27. Rdf1 {[%emt 0:01:30]} Re5 {[%emt 0:00:30]} 28. h4 {[%emt 0:00:30]} Kf7 {[%emt 0:00:30]} 29. Bh3 {[%emt 0:00:30]} Bxh3 {[%emt 0:00:00]} 30. Kxh3 {[%emt 0:00:00]} Ke7 {[%emt 0:01:00]} 31. Kg2 {[%emt 0:01:00]} a5 {[%emt 0:00:30]} 32. Rg4 {[%emt 0:00:30]} Kf7 {[%emt 0:00:30]} 33. Rgf4 {[%emt 0:00:30]} Ke7 {[%emt 0:00:30]} 34. Kf2 {[%emt 0:00:30]} Kd7 {[%emt 0:00:30]} 35. Rg4 {[%emt 0:00:30]} g5 {[%emt 0:00:30]} 36. Nf5 {[%emt 0:00:30]} Rh8 {[%emt 0:00:00]} 37. Ke3 {[%emt 0:00:30]} Kc7 {[%emt 0:00:03]} 38. Kd4 {[%emt 0:00:00]} b6 {[%emt 0:01:27]} 39. Ng7 {[%emt 0:00:00]} Rg8 {[%emt 0:00:30]} 40. Ne6+ {[%emt 0:00:00]} Kd7 {[%emt 0:00:30]} 41. hxg5 {[%emt 0:02:00]} Nxg5 {[%emt 0:00:00]} 42. Nxg5 {[%emt 0:00:00]} Rexg5 {[%emt 0:00:09]} 43. Rh4 {[%emt 0:00:00]} Ke7 {[%emt 0:00:19]} 44. Rh7+ {[%emt 0:00:00]} R8g7 {[%emt 0:00:06]} 45. Rxg7+ {[%emt 0:00:00]} Rxg7 {[%emt 0:00:01]} 46. Rh1 {[%emt 0:00:00]} Kf7 {[%emt 0:01:31]} 47. Ke3 {[%emt 0:00:00]} Rg2 {[%emt 0:00:48]} 48. Rh7+ {[%emt 0:00:00]} Kg6 {[%emt 0:00:19]} 49. Rd7 {[%emt 0:00:00]} Rxa2 {[%emt 0:00:23]} 50. Rxd6 {[%emt 0:00:00]} Rb2 {[%emt 0:00:29]} 51. e5 {[%emt 0:00:00]} Rxb3+ {[%emt 0:00:01]} 52. Ke4 {[%emt 0:00:00]} a4 {[%emt 0:00:13]} 53. Rxf6+ {[%emt 0:00:00]} Kg7 {[%emt 0:00:01]} 54. d6 {[%emt 0:00:00]} Rh3 {[%emt 0:00:30]} 55. d7 {[%emt 0:00:00]} Rh8 {[%emt 0:00:05]} 56. Rxb6 {[%emt 0:00:00]} b3 {[%emt 0:00:43]} 57. Kd5 {[%emt 0:00:00]} Kf7 {[%emt 0:00:17]} 58. Kd6 {[%emt 0:00:00]} Rh6+ {[%emt 0:02:02]} 59. Kc7 {[%emt 0:00:00]} Rxb6 {[%emt 0:00:08]} 60. d8=Q {[%emt 0:00:00]} b2 {[%emt 0:00:17]} 61. Qd5+ {[%emt 0:00:00]} Kg7 {[%emt 0:01:19]} 62. Qg2+ {[%emt 0:00:00]} Kf7 {[%emt 0:01:19]} 1-0

[Event "Centenario Panaderia Pulido 2023"]
[Site "San Mateo Gran Canaria"]
[Date "2023.12.05"]
[Round "3.4"]
[White "Hernandez Leon, Sergio"]
[Black "Yao, Stefano"]
[Result "0-1"]
[ECO "A28"]
[WhiteElo "2167"]
[BlackElo "2288"]
[Annotator "RC"]
[PlyCount "62"]
[EventDate "2023.12.04"]
[EventType "swiss"]
[EventCountry "ESP"]
[SourceTitle "playchess.com"]
[Source "ChessBase"]
[SourceQuality "1"]
[TimeControl "5400+30"]

1. c4 {[%emt 1:31:00]} Nf6 {[%emt 0:03:33]} 2. Nc3 {[%emt 0:00:00]} e5 {[%emt 0:00:29]} 3. Nf3 {[%emt 0:00:00]} Nc6 {[%emt 0:02:04]} 4. e3 {[%emt 0:00:00]} Be7 {[%emt 0:07:05]} 5. d4 {[%emt 0:00:00]} exd4 {[%emt 0:00:35]} 6. exd4 {[%emt 0:00:00]} d5 {[%emt 0:00:08]} 7. c5 {[%emt 0:00:00]} O-O {[%emt 0:01:02]} 8. Bb5 {[%emt 0:00:00]} Bg4 {[%emt 0:08:23]} 9. Bxc6 {[%emt 0:00:00]} bxc6 {[%emt 0:00:02]} 10. Qd3 {[%emt 0:00:00]} Re8 {[%emt 0:18:41]} 11. O-O {[%emt 0:00:00]} Bxf3 {[%emt 0:01:25]} 12. Qxf3 {[%emt 0:00:00]} Ne4 {[%emt 0:00:27]} 13. Nxe4 {[%emt 0:00:00]} dxe4 {[%emt 0:00:07]} 14. Qxe4 {[%emt 0:00:00]} Bxc5 {[%emt 0:06:10]} 15. Qxc6 {[%emt 0:00:00]} Bxd4 {[%emt 0:00:10]} 16. Bf4 {[%emt 0:00:00]} Bxb2 {[%emt 0:02:35]} 17. Rad1 {[%emt 0:00:00]} Qf6 {[%emt 0:05:42]} 18. Qxc7 {[%emt 0:00:00]} Rac8 {[%emt 0:02:58]} 19. Qb7 {[%emt 0:00:00]} Bd4 {[%emt 0:08:09]} 20. Bg3 {[%emt 0:00:47]} Bb6 {[%emt 0:03:32]} 21. h4 {[%emt 0:06:14]} h5 {[%emt 0:03:25]} 22. Rd3 {[%emt 0:01:59]} Rc3 {[%emt 0:05:11]} 23. Rxc3 {[%emt 0:01:04]} Qxc3 {[%emt 0:00:02]} 24. Kh2 {[%emt 0:00:53]} Qc4 {[%emt 0:00:35]} 25. Rd1 {[%emt 0:00:25]} Qxa2 {[%emt 0:00:20]} 26. Rd5 {[%emt 0:00:28]} Bxf2 {[%emt 0:02:34]} 27. Bxf2 {[%emt 0:00:37]} Qxf2 {[%emt 0:00:06]} 28. Qb4 {[%emt 0:00:32]} g6 {[%emt 0:01:19]} 29. Rd7 {[%emt 0:00:15]} Re3 {[%emt 0:02:15]} 30. Qb8+ {[%emt 0:00:41]} Kg7 {[%emt 0:00:51]} 31. Rd4 {[%emt 0:00:29]} Re2 {[%emt 0:00:28]} 0-1

[Event "Centenario Panaderia Pulido 2023"]
[Site "San Mateo Gran Canaria"]
[Date "2023.12.05"]
[Round "3.5"]
[White "Hernando Rodrigo, Jose Maria"]
[Black "Doluhanova, Evgeniya"]
[Result "0-1"]
[ECO "A47"]
[WhiteElo "2278"]
[BlackElo "2177"]
[Annotator "RC"]
[PlyCount "118"]
[EventDate "2023.12.04"]
[EventType "swiss"]
[EventCountry "ESP"]
[SourceTitle "playchess.com"]
[Source "ChessBase"]
[SourceQuality "1"]
[TimeControl "5400+30"]

1. d4 {[%emt 0:01:54]} Nf6 {[%emt 0:01:53]} 2. Nf3 {[%emt 0:00:10]} e6 {[%emt 0:00:13]} 3. e3 {[%emt 0:00:09]} b6 {[%emt 0:00:22]} 4. Bd3 {[%emt 0:03:07]} Bb7 {[%emt 0:00:16]} 5. O-O {[%emt 0:00:27]} Be7 {[%emt 0:00:27]} 6. b3 {[%emt 0:02:59]} O-O {[%emt 0:00:17]} 7. Bb2 {[%emt 0:00:12]} Ne4 {[%emt 0:00:44]} 8. Nbd2 {[%emt 0:04:27]} f5 {[%emt 0:01:11]} 9. c4 {[%emt 0:00:42]} Qe8 {[%emt 0:00:53]} 10. Qc2 {[%emt 0:01:55]} Nxd2 {[%emt 0:03:11]} 11. Nxd2 {[%emt 0:00:41]} Qg6 {[%emt 0:00:08]} 12. e4 {[%emt 0:03:11]} Nc6 {[%emt 0:07:29]} 13. a3 {[%emt 0:03:02]} Bd6 {[%emt 0:16:14]} 14. f3 {[%emt 0:22:57]} Bf4 {[%emt 0:00:51]} 15. Rfe1 {[%emt 0:00:59]} Ne7 {[%emt 0:05:53]} 16. Nf1 {[%emt 0:04:19]} fxe4 {[%emt 0:15:29]} 17. Bxe4 {[%emt 0:00:20]} Bxe4 {[%emt 0:00:05]} 18. Qxe4 {[%emt 0:00:22]} Qxe4 {[%emt 0:00:17]} 19. Rxe4 {[%emt 0:00:13]} Nc8 {[%emt 0:00:18]} 20. Rd1 {[%emt 0:03:14]} Nd6 {[%emt 0:08:07]} 21. Re2 {[%emt 0:00:09]} Rae8 {[%emt 0:03:25]} 22. Kf2 {[%emt 0:01:56]} Bg5 {[%emt 0:00:53]} 23. d5 {[%emt 0:01:45]} exd5 {[%emt 0:07:18]} 24. Rxd5 {[%emt 0:02:20]} Bh4+ {[%emt 0:01:45]} 25. g3 {[%emt 0:00:44]} Rxe2+ {[%emt 0:00:10]} 26. Kxe2 {[%emt 0:00:07]} Bf6 {[%emt 0:00:06]} 27. Bxf6 {[%emt 0:00:24]} Rxf6 {[%emt 0:00:04]} 28. c5 {[%emt 0:00:59]} bxc5 {[%emt 0:01:50]} 29. Rxc5 {[%emt 0:00:13]} c6 {[%emt 0:00:04]} 30. Ne3 {[%emt 0:03:18]} Nb5 {[%emt 0:00:44]} 31. Nc2 {[%emt 0:07:10]} Re6+ {[%emt 0:00:27]} 32. Kf2 {[%emt 0:01:22]} Rd6 {[%emt 0:00:20]} 33. a4 {[%emt 0:04:25]} Nc7 {[%emt 0:00:47]} 34. h4 {[%emt 0:01:05]} Rd3 {[%emt 0:01:55]} 35. b4 {[%emt 0:07:59]} Rb3 {[%emt 0:01:38]} 36. Ke2 {[%emt 0:03:54]} a6 {[%emt 0:01:59]} 37. Re5 {[%emt 0:04:37]} Kf7 {[%emt 0:01:52]} 38. Re3 {[%emt 0:00:31]} Rb2 {[%emt 0:00:37]} 39. Kd2 {[%emt 0:02:29]} Nd5 {[%emt 0:01:48]} 40. Re4 {[%emt 0:00:08]} Rb3 {[%emt 0:00:44]} 41. Ne1 {[%emt 0:04:26]} Nxb4 {[%emt 0:04:10]} 42. Rf4+ {[%emt 0:00:01]} Kg8 {[%emt 0:00:27]} 43. Re4 {[%emt 0:00:01]} c5 {[%emt 0:02:42]} 44. Re7 {[%emt 0:04:56]} d5 {[%emt 0:00:41]} 45. g4 {[%emt 0:00:07]} c4 {[%emt 0:00:28]} 46. Rc7 {[%emt 0:00:02]} a5 {[%emt 0:01:26]} 47. Rc5 {[%emt 0:02:20]} Rb2+ {[%emt 0:01:38]} 48. Kc1 {[%emt 0:00:23]} Re2 {[%emt 0:00:35]} 49. Rc8+ {[%emt 0:00:19]} Kf7 {[%emt 0:00:07]} 50. Kd1 {[%emt 0:00:01]} Ra2 {[%emt 0:00:48]} 51. f4 {[%emt 0:00:00]} Rxa4 {[%emt 0:00:59]} 52. Nf3 {[%emt 0:00:02]} Ra1+ {[%emt 0:01:03]} 53. Kd2 {[%emt 0:00:06]} Ra2+ {[%emt 0:00:29]} 54. Kd1 {[%emt 0:00:08]} Nd3 {[%emt 0:00:26]} 55. Rc7+ {[%emt 0:01:23]} Kf6 {[%emt 0:01:28]} 56. g5+ {[%emt 0:00:54]} Kf5 {[%emt 0:00:51]} 57. Rxg7 {[%emt 0:00:37]} Kxf4 {[%emt 0:00:15]} 58. Nd4 {[%emt 0:00:07]} c3 {[%emt 0:05:04]} 59. Ne2+ {[%emt 0:00:13]} Rxe2 {[%emt 0:00:28]} 0-1

[Event "Centenario Panaderia Pulido 2023"]
[Site "San Mateo Gran Canaria"]
[Date "2023.12.05"]
[Round "3.6"]
[White "Mamani Beltran, Deniman"]
[Black "Calzetta Ruiz, Monica"]
[Result "1/2-1/2"]
[ECO "A14"]
[WhiteElo "2151"]
[BlackElo "2239"]
[Annotator "RC"]
[PlyCount "174"]
[EventDate "2023.12.04"]
[EventType "swiss"]
[EventCountry "ESP"]
[SourceTitle "playchess.com"]
[Source "ChessBase"]
[SourceQuality "1"]
[TimeControl "5400+30"]

1. Nf3 {[%emt 0:00:06]} c5 {[%emt 0:00:35]} 2. b3 {[%emt 0:00:36]} Nf6 {[%emt 0:08:57]} 3. Bb2 {[%emt 0:04:13]} e6 {[%emt 0:01:16]} 4. g3 {[%emt 0:00:55]} d5 {[%emt 0:01:25]} 5. Bg2 {[%emt 0:00:34]} Be7 {[%emt 0:00:14]} 6. O-O {[%emt 0:00:11]} O-O {[%emt 0:00:09]} 7. c4 {[%emt 0:00:20]} Nc6 {[%emt 0:00:42]} 8. e3 {[%emt 0:00:45]} b6 {[%emt 0:07:25]} 9. cxd5 {[%emt 0:07:58]} Nxd5 {[%emt 0:01:26]} 10. d4 {[%emt 0:01:04]} Ba6 {[%emt 0:03:50]} 11. Re1 {[%emt 0:01:25]} Ndb4 {[%emt 0:21:22]} 12. Bf1 {[%emt 0:13:22]} Bxf1 {[%emt 0:01:32]} 13. Rxf1 {[%emt 0:04:45]} cxd4 {[%emt 0:01:39]} 14. exd4 {[%emt 0:02:50]} Rc8 {[%emt 0:02:31]} 15. Nc3 {[%emt 0:07:30]} h6 {[%emt 0:08:19]} 16. Qd2 {[%emt 0:02:31]} Qd7 {[%emt 0:08:17]} 17. Rfd1 {[%emt 0:03:16]} Rfd8 {[%emt 0:00:10]} 18. Qe2 {[%emt 0:00:16]} Nd5 {[%emt 0:08:04]} 19. Ne4 {[%emt 0:06:16]} Qb7 {[%emt 0:03:57]} 20. Ne5 {[%emt 0:02:25]} Rc7 {[%emt 0:06:53]} 21. Rac1 {[%emt 0:02:52]} Rdc8 {[%emt 0:00:14]} 22. Nxc6 {[%emt 0:07:23]} Rxc6 {[%emt 0:00:03]} 23. Rxc6 {[%emt 0:00:31]} Rxc6 {[%emt 0:01:19]} 24. Rc1 {[%emt 0:00:17]} Rxc1+ {[%emt 0:01:17]} 25. Bxc1 {[%emt 0:00:06]} Qc6 {[%emt 0:00:59]} 26. Qc4 {[%emt 0:03:09]} Nb4 {[%emt 0:01:57]} 27. Ba3 {[%emt 0:00:47]} Qxe4 {[%emt 0:00:09]} 28. Bxb4 {[%emt 0:00:06]} Bxb4 {[%emt 0:01:30]} 29. Qxb4 {[%emt 0:00:07]} Qb1+ {[%emt 0:00:36]} 30. Kg2 {[%emt 0:00:06]} Qxa2 {[%emt 0:00:11]} 31. Qc3 {[%emt 0:03:02]} Qb1 {[%emt 0:02:43]} 32. b4 {[%emt 0:02:40]} Qe4+ {[%emt 0:00:11]} 33. Kg1 {[%emt 0:00:13]} Kh7 {[%emt 0:01:56]} 34. Qa1 {[%emt 0:00:16]} f5 {[%emt 0:01:49]} 35. h4 {[%emt 0:01:21]} f4 {[%emt 0:00:35]} 36. gxf4 {[%emt 0:01:32]} Qxf4 {[%emt 0:00:07]} 37. Qxa7 {[%emt 0:00:26]} Qxd4 {[%emt 0:00:47]} 38. Qe7 {[%emt 0:00:16]} Qg4+ {[%emt 0:02:17]} 39. Kf1 {[%emt 0:00:09]} b5 {[%emt 0:00:03]} 40. Qc5 {[%emt 0:00:49]} Qd1+ {[%emt 0:01:26]} 41. Kg2 {[%emt 0:00:08]} Qd5+ {[%emt 0:01:00]} 42. f3 {[%emt 0:00:21]} Kg6 {[%emt 0:00:21]} 43. Qe7 {[%emt 0:00:08]} Qd2+ {[%emt 0:00:50]} 44. Kh3 {[%emt 0:00:09]} Qd5 {[%emt 0:00:18]} 45. Kg2 {[%emt 0:00:17]} Qf5 {[%emt 0:00:14]} 46. Kg3 {[%emt 0:00:26]} Qe5+ {[%emt 0:00:24]} 47. Kg2 {[%emt 0:00:09]} Qf6 {[%emt 0:00:24]} 48. Qe8+ {[%emt 0:00:04]} Kh7 {[%emt 0:00:20]} 49. Qxb5 {[%emt 0:00:26]} Qxh4 {[%emt 0:00:13]} 50. Qd3+ {[%emt 0:00:27]} Kh8 {[%emt 0:00:15]} 51. b5 {[%emt 0:01:51]} Qg5+ {[%emt 0:00:27]} 52. Kh2 {[%emt 0:00:19]} Qh5+ {[%emt 0:00:23]} 53. Kg2 {[%emt 0:00:45]} Qg5+ {[%emt 0:00:17]} 54. Kh2 {[%emt 0:00:13]} h5 {[%emt 0:02:12]} 55. b6 {[%emt 0:00:34]} h4 {[%emt 0:00:41]} 56. b7 {[%emt 0:00:57]} Qe5+ {[%emt 0:00:32]} 57. Kh1 {[%emt 0:01:09]} Qa1+ {[%emt 0:00:09]} 58. Kg2 {[%emt 0:00:12]} Qb2+ {[%emt 0:00:02]} 59. Kh3 {[%emt 0:00:06]} Qxb7 {[%emt 0:00:07]} 60. Kxh4 {[%emt 0:00:07]} Qe7+ {[%emt 0:00:09]} 61. Kg4 {[%emt 0:00:08]} Qf6 {[%emt 0:00:16]} 62. Qe4 {[%emt 0:00:16]} Kg8 {[%emt 0:00:13]} 63. Qb7 {[%emt 0:00:59]} Kh7 {[%emt 0:00:02]} 64. f4 {[%emt 0:00:40]} Qf5+ {[%emt 0:00:10]} 65. Kg3 {[%emt 0:00:06]} Qd3+ {[%emt 0:02:16]} 66. Kh4 {[%emt 0:00:24]} Qe3 {[%emt 0:01:15]} 67. Kg4 {[%emt 0:00:42]} Qg1+ {[%emt 0:00:14]} 68. Kh3 {[%emt 0:00:13]} Qf1+ {[%emt 0:00:39]} 69. Kg3 {[%emt 0:00:11]} Qd3+ {[%emt 0:00:31]} 70. Kh4 {[%emt 0:00:08]} Qd4 {[%emt 0:00:39]} 71. Kg3 {[%emt 0:00:16]} Qd3+ {[%emt 0:00:51]} 72. Kg2 {[%emt 0:00:32]} Kg6 {[%emt 0:00:06]} 73. Kf2 {[%emt 0:00:16]} Qd4+ {[%emt 0:00:20]} 74. Kg3 {[%emt 0:00:10]} Qd3+ {[%emt 0:01:01]} 75. Kf2 {[%emt 0:00:32]} Qf5 {[%emt 0:00:17]} 76. Kg3 {[%emt 0:00:06]} Qd5 {[%emt 0:00:35]} 77. Qe7 {[%emt 0:00:34]} Qd3+ {[%emt 0:00:15]} 78. Kf2 {[%emt 0:00:20]} Qf5 {[%emt 0:00:30]} 79. Kg3 {[%emt 0:00:14]} Qf6 {[%emt 0:00:21]} 80. Qe8+ {[%emt 0:00:52]} Kh7 {[%emt 0:00:27]} 81. Qc6 {[%emt 0:00:34]} Qg6+ {[%emt 0:00:55]} 82. Kf2 {[%emt 0:00:07]} Qf5 {[%emt 0:00:15]} 83. Kg3 {[%emt 0:00:15]} e5 {[%emt 0:00:48]} 84. Qh1+ {[%emt 0:00:17]} Kg6 {[%emt 0:00:17]} 85. Qc6+ {[%emt 0:00:04]} Kh7 {[%emt 0:00:25]} 86. Qh1+ {[%emt 0:00:07]} Kg6 {[%emt 0:00:11]} 87. Qc6+ {[%emt 0:00:04]} Kh7 {[%emt 0:00:49]} 1/2-1/2